bitfinex/quotes_ETHUSD_20250223
["timestamp","ask_amount","ask_price","bid_price","bid_amount"]
[1740303102246,3.82851438,2806.3,2805.8,3.56403]
[1740303102546,0.26509438,2806.3,2805.9,3.56386]
[1740303102701,0.26509438,2806.3,2805.8,0.90152669]
[1740303102901,0.774,2806.0,2805.6,1.11963687]
[1740303103111,0.774,2806.0,2805.6,4.68383687]
[1740303103314,7.90129,2806.2,2805.6,4.68383687]
[1740303103545,4.60273438,2806.2,2805.6,4.68383687]
[1740303103823,8.16636438,2806.2,2805.6,4.68383687]
[1740303104030,4.60272438,2806.2,2805.6,4.68383687]
[1740303104217,4.60272438,2806.2,2805.7,0.71853375]
[1740303104614,4.60271438,2806.2,2805.7,0.71853375]
[1740303105016,0.05551492,2806.1,2805.7,0.71853375]
[1740303105215,0.3206093,2806.1,2805.7,0.71853375]
[1740303106238,0.05551492,2806.1,2805.7,0.71853375]
[1740303106440,0.05551492,2806.1,2805.4,0.7675]
[1740303106746,0.05551492,2806.1,2805.5,3.56439]
[1740303106965,0.26506296,2806.0,2805.6,3.56428]
[1740303107268,0.32048853,2806.0,2805.6,3.56428]
[1740303108428,0.05542557,2806.0,2805.6,3.56428]
[1740303108823,7.9012,2806.2,2805.6,3.56428]
[1740303109151,4.33758,2806.2,2805.6,3.56428]
[1740303109323,0.05530939,2806.1,2805.7,3.56415]
[1740303109720,0.05530939,2806.1,2805.6,3.56428]
[1740303109948,3.61897939,2806.1,2805.6,3.56428]
[1740303110252,0.05530939,2806.1,2805.6,3.56428]
[1740303110935,0.05530939,2806.1,2805.7,3.56411]
[1740303111533,0.05530939,2806.1,2806.0,3.56379]
[1740303111850,0.05530939,2806.1,2805.9,0.7657]
[1740303111851,9.55947,2806.5,2805.9,7.89338]
[1740303112055,0.05533621,2806.1,2805.9,4.32961]
[1740303112353,0.05533621,2806.0,2805.9,4.32961]
[1740303112529,9.55947,2806.5,2805.9,4.32961]
[1740303112736,0.05533621,2806.0,2805.7,3.56406]
[1740303113060,0.7563,2806.1,2805.7,3.56406]
[1740303113252,0.05533621,2805.9,2805.7,3.56406]
[1740303113437,0.7563,2806.1,2805.7,3.56406]
[1740303113622,0.05533621,2805.8,2805.7,3.56406]
[1740303113955,0.05533621,2805.8,2805.7,4.353471]
[1740303114160,0.7504,2806.4,2805.9,3.56382]
[1740303114361,4.31369,2806.4,2805.9,3.56382]
[1740303115327,3.56357,2806.2,2805.7,0.789411]
[1740303115526,0.7504,2806.4,2805.8,3.56403]
[1740303115753,4.31369,2806.4,2805.9,3.56388]
[1740303116136,4.31369,2806.4,2805.8,7.6399041]
[1740303116663,4.31369,2806.4,2805.8,4.0758741]
[1740303116859,4.31369,2806.4,2805.8,7.6398241]
[1740303117163,3.56341,2806.3,2805.8,4.0758641]
[1740303117460,7.87707,2806.4,2805.8,4.0758641]
[1740303117659,0.7504,2806.4,2805.6,4.32993]
[1740303117863,3.56364,2806.2,2805.7,3.56417]
[1740303118096,0.7504,2806.6,2806.2,0.7727]
[1740303118250,0.7504,2806.8,2806.4,3.56317]
[1740303118762,4.31317,2806.8,2806.2,7.89961]
[1740303118923,4.31317,2806.8,2806.2,4.33613]
[1740303119135,3.56316,2806.5,2806.0,4.35071]
[1740303119331,4.32791,2806.4,2805.9,3.56383]
[1740303119640,4.32791,2806.4,2806.0,0.79148]
[1740303119854,0.7646,2806.4,2806.0,4.35524]
[1740303120224,0.7646,2806.4,2806.2,3.56351]
[1740303120467,0.7646,2806.7,2806.2,3.56351]
[1740303120758,4.3276,2806.7,2806.2,3.56351]
[1740303120964,3.56304,2806.6,2806.0,4.35518]
[1740303121164,3.56304,2806.6,2806.1,0.435518]
[1740303121387,3.56331,2806.4,2806.0,0.79148]
[1740303121878,0.05553278,2806.3,2806.0,0.79148]
[1740303122179,0.82013278,2806.3,2806.0,0.79148]
[1740303124685,0.82013278,2806.3,2805.8,0.787]
[1740303125183,4.38357278,2806.3,2805.8,4.35104]
[1740303125378,0.82013278,2806.3,2805.8,4.35104]
[1740303125677,0.82013278,2806.3,2805.8,0.787]
[1740303126176,0.82013278,2806.3,2805.8,4.35103]
[1740303126376,0.82013278,2806.3,2805.8,5.142562]
[1740303126756,0.82013278,2806.3,2805.9,3.5639]
[1740303127381,0.82013278,2806.3,2806.0,3.56378]
[1740303128109,0.05553278,2806.3,2806.2,3.56353]
[1740303128280,0.05553278,2806.3,2805.8,1.578532]
[1740303128578,0.05547024,2806.2,2806.1,3.56355]
[1740303128784,4.31823,2806.6,2806.1,3.56355]
[1740303128979,0.0554077,2806.2,2806.1,3.56355]
[1740303129191,4.31823,2806.6,2806.1,3.56355]
[1740303129370,0.05543451,2806.2,2806.1,3.56355]
[1740303129578,3.56329,2806.4,2806.1,0.712727]
[1740303129885,0.05543451,2806.2,2805.9,3.56384]
[1740303130065,3.56329,2806.4,2805.9,3.56384]
[1740303130266,0.05543451,2806.1,2805.9,3.56384]
[1740303130685,3.56329,2806.4,2805.9,3.56384]
[1740303130987,3.56318,2806.5,2805.9,3.56391]
[1740303131283,0.05543451,2806.3,2805.9,3.56391]
[1740303131482,3.56318,2806.5,2805.9,3.56391]
[1740303131649,0.05543451,2806.2,2805.8,4.35092]
[1740303131857,3.56318,2806.5,2805.8,5.681437]
[1740303132056,0.05540769,2806.1,2805.8,5.681437]
[1740303132353,3.27615868,2806.0,2805.0,0.8232]
[1740303132552,3.56412,2805.8,2805.2,7.12945]
[1740303132867,3.56412,2805.8,2805.3,3.56465]
[1740303133183,3.61936748,2805.7,2805.3,0.712937]
[1740303133388,3.56451,2805.5,2805.0,0.8232]
[1740303133554,5.02660831,2805.4,2804.8,0.713082]
[1740303133754,3.56478,2805.3,2804.8,0.713082]
[1740303134184,0.8269,2804.9,2804.3,5.39]
[1740303134388,3.56541,2804.8,2804.2,4.3747]
[1740303134577,3.56555,2804.7,2804.2,4.3747]
[1740303134981,0.05422791,2804.6,2804.2,4.3747]
[1740303135293,0.05422791,2804.6,2804.2,7.94068]
[1740303135691,3.56541,2804.8,2804.2,7.94068]
[1740303136000,3.56541,2804.8,2804.3,1.231447]
[1740303136312,0.05422791,2804.7,2804.3,1.231447]
[1740303136615,3.56541,2804.8,2804.3,1.231447]
[1740303136775,0.05422791,2804.6,2804.3,1.231447]
[1740303136973,3.56541,2804.8,2804.3,1.231447]
[1740303137185,0.05422791,2804.5,2804.3,4.797357]
[1740303137391,0.8269,2804.9,2804.3,4.797357]
[1740303137695,0.8269,2804.9,2804.4,0.9172057]
[1740303138106,0.8269,2804.9,2804.5,7.13124]
[1740303138274,0.8269,2804.9,2804.6,3.56554]
[1740303138672,3.56487,2805.2,2804.6,3.56554]
[1740303138894,0.8269,2805.2,2804.9,3.56516]
[1740303139291,0.73174822,2805.0,2804.5,3.56558]
[1740303139486,0.73174822,2805.0,2804.5,4.01385857]
[1740303139690,0.73174822,2805.0,2804.5,7.57947857]
[1740303139889,0.73174822,2805.0,2804.5,3.56558]
[1740303140090,3.56519,2804.9,2804.3,3.56587]
[1740303140286,0.7961,2804.9,2804.2,4.3747]
[1740303140501,4.36132,2804.9,2804.3,3.56591]
[1740303141090,3.56536,2804.8,2804.2,4.3747]
[1740303141287,3.56544,2804.7,2804.2,5.249555]
[1740303141495,3.56536,2804.8,2804.2,8.815555]
[1740303141994,3.56544,2804.7,2804.2,5.249555]
[1740303142192,3.56544,2804.7,2804.2,4.3747]
[1740303142606,0.7961,2804.5,2804.2,4.3747]
[1740303144902,4.36187,2804.5,2804.2,4.3747]
[1740303145070,3.56595,2804.3,2804.2,4.3747]
[1740303145687,8.80588,2804.4,2804.2,4.3747]
[1740303145886,13.65962387,2804.4,2804.2,4.3747]
[1740303146114,3.56595,2804.3,2804.2,4.3747]
[1740303149027,4.33125,2804.3,2804.2,4.3747]
[1740303150679,5.04573979,2804.3,2804.2,4.3747]
[1740303151615,5.0983008,2804.3,2804.2,4.3747]
[1740303151815,6.61750027,2804.3,2804.2,4.3747]
[1740303152310,15.13365895,2804.3,2804.2,4.3747]
[1740303152910,11.85750027,2804.3,2804.2,4.3747]
[1740303153479,8.29155027,2804.3,2804.2,4.3747]
[1740303153682,6.7723508,2804.3,2804.2,4.3747]
[1740303154583,10.3383008,2804.3,2804.2,4.3747]
[1740303156015,5.0983008,2804.3,2804.2,4.3747]
[1740303162000,10.3383008,2804.3,2804.2,4.3747]
[1740303162212,11.72871888,2804.3,2804.2,4.3747]
[1740303163100,15.00487756,2804.3,2804.2,4.3747]
[1740303163297,15.55487756,2804.3,2804.2,4.3747]
[1740303166743,3.56717,2803.4,2803.2,1.512476]
[1740303167099,0.05078557,2803.3,2803.2,1.512476]
[1740303167303,3.61800557,2803.3,2803.2,1.512476]
[1740303167926,0.05078557,2803.3,2803.2,1.512476]
[1740303168142,3.56706,2803.5,2803.2,1.512476]
[1740303168461,0.05078557,2803.3,2803.2,1.512476]
[1740303168738,0.05078557,2803.3,2802.8,4.35759]
[1740303169061,3.61806557,2803.3,2802.8,1.764559]
[1740303169205,3.61806557,2803.3,2802.8,0.7898]
[1740303170148,3.56728,2803.3,2802.8,0.7898]
[1740303170306,0.05051698,2803.2,2802.8,0.7898]
[1740303170660,3.56728,2803.3,2802.8,0.7898]
[1740303170844,0.05051698,2803.1,2802.8,4.35755]
[1740303171040,3.56704,2803.5,2802.8,5.6891]
[1740303171253,0.05051698,2803.0,2802.8,5.6891]
[1740303171403,3.56704,2803.5,2802.8,5.6891]
[1740303171601,0.77434854,2802.9,2802.8,5.6651]
[1740303171803,0.72383156,2802.9,2802.8,5.6651]
[1740303175657,8.80678,2803.7,2803.1,3.56738]
[1740303176146,0.05051698,2803.6,2803.1,3.56738]
[1740303176448,0.71760317,2803.2,2803.1,3.56738]
[1740303176652,0.71760317,2803.2,2803.0,4.34778]
[1740303176959,0.05051698,2803.1,2803.0,0.7802]
[1740303177122,0.05051698,2803.1,2803.0,4.3478]
[1740303177441,0.05051698,2803.1,2803.0,1.571747]
[1740303177671,0.05051698,2803.1,2803.0,5.139347]
[1740303184755,0.05051698,2803.1,2802.8,0.796]
[1740303185431,3.56711,2803.4,2802.8,0.796]
[1740303185634,0.04853895,2803.3,2802.8,0.796]
[1740303187252,3.61577895,2803.3,2802.8,0.796]
[1740303188151,0.04853895,2803.3,2802.8,0.796]
[1740303188361,6.0351,2803.7,2803.2,3.56735]
[1740303188534,0.04844934,2803.6,2803.2,3.56735]
[1740303190262,0.04844934,2803.6,2803.1,3.56741]
[1740303191026,0.04844934,2803.6,2802.9,3.56764]
[1740303191553,3.56698,2803.5,2802.9,3.56764]
[1740303191953,0.04844934,2803.4,2802.9,3.56764]
[1740303192163,0.04844934,2803.4,2802.9,4.09462757]
[1740303193758,0.04844934,2803.4,2802.9,7.66228757]
[1740303193959,0.04844934,2803.4,2802.9,4.09462757]
[1740303196159,0.04844934,2803.4,2802.9,3.56764]
[1740303196363,0.7818,2803.3,2802.6,0.7522]
[1740303196549,3.56756,2803.1,2802.5,3.56815]
[1740303196859,0.0485748,2803.0,2802.5,3.56815]
[1740303197091,0.0485748,2803.0,2802.6,3.56809]
[1740303197587,0.0485748,2802.9,2802.7,3.56791]
[1740303197784,3.56736,2803.2,2802.7,3.56791]
[1740303197987,0.0485748,2803.1,2802.7,3.56791]
[1740303198862,0.0485748,2803.1,2802.8,3.5678]
[1740303199057,0.7818,2803.3,2802.8,3.5678]
[1740303199257,0.0485748,2803.2,2802.8,3.5678]
[1740303199471,0.7818,2803.3,2802.8,3.56774]
[1740303199779,5.24,2803.4,2802.9,3.56762]
[1740303200079,0.0485748,2803.3,2802.9,3.56762]
[1740303200462,4.38589,2803.5,2802.9,3.56762]
[1740303200809,5.705167,2803.5,2802.9,3.56762]
[1740303200953,0.0485748,2803.4,2802.8,0.7706]
[1740303201150,3.56724,2803.3,2802.8,0.7706]
[1740303201383,0.8189,2803.2,2802.7,3.56792]
[1740303201683,0.0485748,2803.1,2802.7,3.56792]
[1740303203668,0.0485748,2803.1,2802.9,3.56763]
[1740303204064,0.8189,2803.4,2802.9,3.56763]
[1740303204253,0.8189,2803.4,2802.8,3.56779]
[1740303204254,0.04631438,2803.3,2802.8,3.56779]
[1740303204450,3.56737,2803.2,2802.6,4.33863]
[1740303204659,3.56737,2803.2,2802.6,7.90667]
[1740303204858,0.04631438,2803.1,2802.6,7.90667]
[1740303205385,0.04631438,2803.1,2802.6,4.33863]
[1740303205590,0.04631438,2803.1,2802.8,3.56773]
[1740303205769,0.8189,2803.4,2802.9,4.39392]
[1740303205972,0.04631438,2803.3,2803.1,3.56743]
[1740303206184,3.7857,2803.6,2803.1,3.56743]
[1740303206373,0.04631438,2803.5,2803.1,3.56743]
[1740303206772,0.04631438,2803.5,2802.9,4.39392]
[1740303206968,0.04631438,2803.5,2802.9,7.96157]
[1740303207390,0.04631438,2803.5,2802.9,4.39385]
[1740303208193,0.04631438,2803.5,2802.9,7.96146]
[1740303208363,0.04631438,2803.5,2803.0,3.5676]
[1740303209697,3.61338438,2803.5,2802.9,4.39386]
[1740303209892,0.04631438,2803.5,2802.9,4.39386]
[1740303210207,1.31020682,2803.5,2802.9,0.8262]
[1740303210498,3.56734,2803.3,2802.7,3.56797]
[1740303210898,3.56734,2803.3,2802.6,0.8262]
[1740303211102,0.04631438,2803.2,2802.7,3.56794]
[1740303213006,3.61370438,2803.2,2802.7,3.56794]
[1740303214615,0.832,2803.1,2802.7,3.56794]
[1740303214819,0.04635024,2803.0,2802.5,7.13638]
[1740303214982,3.61397024,2803.0,2802.5,3.56817]
[1740303215180,0.71396671,2802.6,2802.3,3.56841]
[1740303215680,0.04635024,2802.5,2802.3,3.56841]
[1740303216703,0.832,2802.7,2802.3,3.56841]
[1740303217302,0.04635024,2802.6,2802.2,4.33762]
[1740303217497,0.04635024,2802.6,2802.2,0.769]
[1740303217701,4.40002,2802.7,2802.2,0.769]
[1740303217900,4.40002,2802.7,2802.2,4.3376]
[1740303218105,0.04635024,2802.6,2802.2,0.769]
[1740303218404,0.832,2802.7,2802.2,0.769]
[1740303218607,0.04621571,2802.5,2802.2,0.769]
[1740303218765,4.40001,2802.7,2802.2,0.769]
[1740303218970,0.04621571,2802.6,2802.2,0.769]
[1740303219482,4.05901828,2802.6,2801.9,4.37508]
[1740303219682,0.8048,2802.5,2801.9,0.8061]
[1740303219900,0.8048,2802.5,2802.2,3.56855]
[1740303220100,0.04613499,2802.4,2802.2,3.56855]
[1740303220283,0.04613499,2802.4,2802.3,3.56849]
[1740303220605,0.04613499,2802.4,2802.1,3.56868]
[1740303221104,0.8048,2802.5,2801.9,0.8061]
[1740303221309,0.8048,2802.5,2802.0,3.56887]
[1740303221677,0.04613499,2802.4,2802.0,3.56887]
[1740303222516,0.04613499,2802.4,2801.5,11.66259]
[1740303222517,0.8048,2802.0,2801.5,11.66259]
[1740303222814,0.04593765,2801.9,2801.5,10.85649]
[1740303225514,0.8048,2801.8,2801.5,10.85649]
[1740303225682,0.8048,2801.8,2801.3,3.56974]
[1740303225683,0.8048,2801.8,2801.4,3.56963]
[1740303225882,8.80857,2802.3,2801.1,0.8061]
[1740303225883,0.8048,2802.0,2801.7,3.56926]
[1740303226191,0.8048,2802.0,2801.8,3.56906]
[1740303226614,0.8048,2802.0,2801.5,0.8061]
[1740303226615,0.04484318,2801.9,2801.5,4.37553]
[1740303226776,0.04484318,2801.9,2801.5,3.56943]
[1740303227185,0.04484318,2801.9,2801.5,3.56941]
[1740303227519,0.04484318,2801.9,2801.3,7.94549]
[1740303227707,0.04484318,2801.9,2801.4,3.56956]
[1740303228286,0.04484318,2801.9,2801.3,5.2323]
[1740303228618,0.04484318,2801.9,2801.3,3.56965]
[1740303229116,0.8048,2801.8,2801.4,3.56961]
[1740303229721,0.04484318,2801.7,2801.4,3.56961]
[1740303230117,0.8048,2801.8,2801.4,3.56961]
[1740303230416,0.8048,2801.8,2801.1,4.376]
[1740303230622,0.04484318,2801.7,2801.1,5.35139719]
[1740303230787,0.04484318,2801.7,2801.3,3.56976]
[1740303230987,0.8048,2801.8,2801.3,3.56976]
[1740303231219,0.04484318,2801.7,2801.3,3.56976]
[1740303231425,0.8048,2801.8,2801.3,3.56976]
[1740303231720,0.04484318,2801.7,2801.3,3.56976]
[1740303232109,0.8048,2801.8,2801.3,3.56976]
[1740303232305,0.04484318,2801.6,2801.3,3.56976]
[1740303232515,0.7563,2801.8,2801.1,4.54529719]
[1740303232685,0.7563,2801.4,2801.1,7.13984]
[1740303233119,0.7563,2801.4,2801.2,3.56984]
[1740303234221,0.7563,2801.4,2801.1,3.5699]
[1740303234401,0.7563,2801.4,2801.1,7.13985]
[1740303234614,0.7563,2801.4,2801.2,3.56986]
[1740303234822,0.8251,2801.8,2800.9,0.8327]
[1740303235012,0.0447355,2801.7,2801.3,3.5697]
[1740303235211,0.8251,2801.8,2801.3,3.5697]
[1740303235538,0.8251,2801.8,2801.1,7.13983]
[1740303235539,0.0447355,2801.7,2801.1,7.13983]
[1740303235707,0.0447355,2801.7,2801.1,3.5699]
[1740303236441,0.48862305,2801.7,2801.1,3.56999]
[1740303236607,0.48862305,2801.7,2801.1,7.13987]
[1740303236812,0.48862305,2801.7,2801.1,3.56993]
[1740303237143,0.48862305,2801.7,2801.2,3.56982]
[1740303237838,0.48862305,2801.7,2801.4,3.56959]
[1740303238041,0.0447355,2801.7,2801.2,3.56977]
[1740303238240,0.0447355,2801.7,2801.4,3.56959]
[1740303238409,0.8251,2801.8,2801.2,3.56986]
[1740303238606,0.04447525,2801.6,2800.9,0.8327]
[1740303238863,0.8251,2801.8,2801.0,3.57015]
[1740303239137,0.04447525,2801.5,2801.4,3.56964]
[1740303239329,0.8251,2801.8,2801.4,3.56964]
[1740303239530,0.04447525,2801.5,2801.4,3.56964]
[1740303239745,0.8251,2801.8,2801.4,3.56964]
[1740303239946,0.04447525,2801.5,2801.4,3.56964]
[1740303240121,0.8251,2801.8,2801.5,3.56949]
[1740303241140,0.8251,2801.8,2801.5,3.56944]
[1740303241342,0.8251,2801.8,2801.6,3.56938]
[1740303241551,0.8251,2801.8,2801.4,3.56956]
[1740303241725,0.04447525,2801.7,2801.3,4.36688]
[1740303241927,0.04447525,2801.7,2801.6,3.56938]
[1740303242256,0.04447525,2801.7,2801.5,3.56949]
[1740303242457,0.8251,2801.8,2801.5,3.56949]
[1740303242748,0.04447525,2801.6,2801.5,3.56949]
[1740303242924,0.8251,2801.8,2801.5,3.56949]
[1740303243121,0.04447525,2801.6,2801.5,3.56949]
[1740303243357,0.8251,2801.8,2801.5,3.56949]
[1740303243551,0.04447525,2801.6,2801.4,3.56963]
[1740303243721,1.43161,2801.8,2801.4,3.56963]
[1740303243919,0.04447525,2801.5,2801.4,3.56963]
[1740303244119,1.43161,2801.8,2801.2,3.56988]
[1740303244334,0.04447525,2801.5,2801.3,3.56976]
[1740303244652,0.04447525,2801.4,2801.3,3.56976]
[1740303244852,1.43161,2801.8,2801.3,3.56976]
[1740303245052,0.04447525,2801.4,2801.3,3.56976]
[1740303245222,0.8251,2801.8,2801.3,3.56976]
[1740303245422,0.04447525,2801.4,2801.3,3.56976]
[1740303245623,0.8251,2801.8,2801.3,3.56976]
[1740303245949,0.04447525,2801.4,2801.3,3.56976]
[1740303246158,0.8251,2801.8,2801.3,3.56976]
[1740303246456,0.04447525,2801.7,2801.3,3.56976]
[1740303246655,0.8251,2801.8,2801.3,3.56976]
[1740303246852,0.04447525,2801.6,2801.3,3.56976]
[1740303247023,0.8251,2801.8,2801.3,3.56976]
[1740303247220,0.04447525,2801.5,2801.3,3.56976]
[1740303247427,0.8251,2801.8,2801.4,3.56964]
[1740303247628,0.72773803,2801.5,2801.4,3.56964]
[1740303249439,0.72773803,2801.5,2801.2,3.56988]
[1740303249759,0.72773803,2801.5,2801.3,3.56974]
[1740303250932,0.72773803,2801.5,2801.2,3.56988]
[1740303251132,0.8205,2801.4,2801.2,3.5698]
[1740303251357,0.8205,2801.4,2801.3,3.56977]
[1740303252943,0.72773803,2801.5,2801.3,3.56977]
[1740303254965,0.72773803,2801.5,2801.2,3.5698]
[1740303255568,0.72773803,2801.5,2801.3,3.56975]
[1740303256327,0.72773803,2801.5,2800.8,0.8093]
[1740303256528,3.56985,2801.3,2800.7,3.57046]
[1740303256766,4.32445,2801.4,2800.6,4.37994]
[1740303256767,0.7548,2801.1,2800.6,3.57064]
[1740303256958,0.7548,2801.1,2800.5,3.57075]
[1740303257177,0.04408036,2801.0,2800.5,3.57075]
[1740303257547,3.57062,2800.7,2800.2,0.8093]
[1740303257746,0.7548,2800.5,2800.0,7.14268]
[1740303257979,0.7548,2800.5,2800.1,3.57125]
[1740303258137,0.04348776,2800.4,2800.1,3.57125]
[1740303258456,0.04348776,2800.4,2800.0,7.14266]
[1740303258764,0.04348776,2800.4,2800.0,3.57133]
[1740303258968,0.04348776,2800.4,2800.1,3.57127]
[1740303259854,0.04348776,2800.4,2800.2,3.57117]
[1740303260365,0.04348776,2800.4,2800.3,3.57104]
[1740303261062,0.04348776,2800.4,2800.3,5.049264]
[1740303261269,0.72480966,2800.6,2800.5,3.57079]
[1740303261468,0.76829742,2800.6,2800.5,3.57079]
[1740303261669,0.72480966,2800.6,2800.5,3.57079]
[1740303262665,0.72480966,2800.6,2800.3,4.33496]
[1740303262972,0.04348776,2800.5,2800.4,3.57091]
[1740303263344,0.04348776,2800.5,2800.3,3.571]
[1740303263736,0.04348776,2800.5,2800.2,3.57109]
[1740303263948,0.04348776,2800.5,2800.4,3.57091]
[1740303267664,0.04348776,2800.5,2800.4,4.35791]
[1740303268872,7.76e-06,2800.5,2800.4,9.74791]
[1740303269041,5.24,2801.7,2801.6,3.56938]
[1740303269245,0.03590154,2801.7,2801.6,7.13868]
[1740303269460,0.03590154,2801.7,2801.6,3.5693]
[1740303269863,0.7812,2801.8,2801.6,3.5693]
[1740303270083,0.03590154,2801.7,2801.6,3.4693]
[1740303270263,0.7812,2801.8,2801.6,3.4693]
[1740303270564,0.03590154,2801.7,2801.2,3.56982]
[1740303270791,0.03590154,2801.7,2801.3,3.56976]
[1740303271241,0.7812,2801.8,2801.3,3.56976]
[1740303271452,0.03590154,2801.7,2801.3,3.56976]
[1740303271670,0.7812,2801.8,2801.3,3.56976]
[1740303271872,0.03590154,2801.7,2801.3,3.56976]
[1740303272169,0.7812,2801.8,2801.3,3.56976]
[1740303272498,0.7812,2801.8,2801.4,3.56962]
[1740303272691,0.74365919,2801.7,2801.5,3.56951]
[1740303273258,0.74365919,2801.7,2801.3,3.56974]
[1740303276369,1.25304611,2801.7,2801.1,3.56994]
[1740303276694,0.7812,2801.6,2801.2,3.56989]
[1740303276891,0.7812,2801.6,2801.5,3.56951]
[1740303277110,0.03590154,2801.6,2801.5,3.56951]
[1740303277291,0.7812,2802.1,2801.5,3.56951]
[1740303277458,0.03590154,2802.0,2801.5,3.56951]
[1740303277892,0.03590154,2802.0,2801.6,3.56937]
[1740303278260,0.03590154,2802.0,2801.2,0.8322]
[1740303278465,0.03590154,2802.0,2801.7,3.56925]
[1740303279160,0.03590154,2802.0,2801.2,0.8322]
[1740303279360,0.03590154,2802.0,2801.9,3.569]
[1740303279775,5.24,2802.3,2802.1,3.56873]
[1740303279979,0.7899,2802.4,2802.1,3.56873]
[1740303280193,0.7899,2802.4,2801.8,0.7535]
[1740303280401,0.7899,2802.4,2802.3,3.56849]
[1740303280698,0.7899,2802.8,2801.8,0.7535]
[1740303280868,0.7899,2802.8,2802.5,3.56812]
[1740303281600,0.7899,2802.8,2802.3,3.56842]
[1740303281763,4.35778,2802.8,2802.3,3.56842]
[1740303282387,4.35778,2802.8,2802.1,7.13732]
[1740303282588,4.35778,2802.8,2802.1,7.851052]
[1740303282791,3.568,2802.7,2802.1,4.282372]
[1740303283102,0.7899,2802.5,2802.0,3.56887]
[1740303283305,0.7899,2802.5,2802.1,3.56868]
[1740303283496,4.35783,2802.8,2802.1,3.56868]
[1740303283697,7.92579,2802.8,2802.2,3.5686]
[1740303283999,3.568,2802.7,2802.1,3.56868]
[1740303284603,4.35783,2802.8,2802.1,3.56868]
[1740303284798,3.56813,2802.6,2802.1,3.56868]
[1740303285988,0.8273,2802.5,2802.1,3.56868]
[1740303286798,0.03795902,2802.4,2802.1,3.56866]
[1740303287004,0.03795902,2802.4,2802.3,3.56849]
[1740303287199,0.03795902,2802.4,2802.3,4.35389]
[1740303287806,0.8273,2802.8,2802.3,4.35389]
[1740303287974,0.03794107,2802.4,2802.3,4.35389]
[1740303288174,4.39517,2802.8,2802.2,3.56862]
[1740303288374,0.03794107,2802.4,2801.7,0.7854]
[1740303288578,3.56824,2802.5,2801.9,3.56891]
[1740303288802,0.03797698,2802.3,2802.0,3.56884]
[1740303289007,3.56819,2802.6,2802.0,3.56877]
[1740303289206,0.03797698,2802.2,2802.0,3.56877]
[1740303289395,3.56819,2802.6,2802.0,3.925647]
[1740303289599,3.56819,2802.6,2802.1,3.56868]
[1740303289996,9.283485,2802.8,2802.1,3.56868]
[1740303290194,3.56801,2802.7,2802.1,4.26570372]
[1740303290396,3.56801,2802.7,2802.2,3.56859]
[1740303290597,2.147585,2802.8,2802.3,3.56843]
[1740303291103,2.147585,2802.8,2802.4,3.56834]
[1740303291699,0.8273,2802.8,2802.4,3.56834]
[1740303293878,0.8273,2802.8,2802.6,0.71074551]
[1740303298114,4.35098,2802.7,2802.6,0.71074551]
[1740303301411,0.7751,2802.6,2801.6,0.7522]
[1740303301714,0.7751,2801.9,2801.4,4.32176]
[1740303301879,4.34416,2801.9,2801.4,4.32176]
[1740303302080,0.03855177,2801.8,2801.4,4.32176]
[1740303302493,0.03855177,2801.8,2801.7,0.71435973]
[1740303304712,0.03855177,2801.8,2801.7,3.56926]
[1740303304914,0.03855177,2801.8,2801.6,3.56938]
[1740303305087,0.8052,2802.1,2801.6,3.56938]
[1740303305283,0.03855177,2801.7,2801.6,3.56938]
[1740303305485,6.0452,2802.3,2801.9,0.7954]
[1740303305789,5.24,2802.3,2802.2,3.56862]
[1740303306091,6.0452,2802.7,2802.3,3.56843]
[1740303306296,0.8052,2802.7,2802.3,3.56843]
[1740303306507,8.80782,2802.9,2802.3,7.13684]
[1740303306707,3.56786,2802.8,2802.3,4.36381]
[1740303311523,9.61294,2802.9,2802.3,7.93222]
[1740303311689,9.61294,2802.9,2802.3,4.36381]
[1740303312516,3.56788,2802.8,2802.3,4.36381]
[1740303312713,3.568,2802.7,2802.3,0.7954]
[1740303313626,3.56812,2802.6,2802.3,0.7954]
[1740303313791,3.56812,2802.6,2802.1,4.38736]
[1740303316898,0.03835941,2802.5,2802.1,4.38736]
[1740303318500,3.60659941,2802.5,2802.1,0.8187]
[1740303321507,0.03835941,2802.5,2802.1,0.8187]
[1740303321720,3.56837,2802.4,2802.1,0.8187]
[1740303321923,0.03855698,2802.3,2801.8,0.8072]
[1740303322303,0.03855698,2802.3,2801.8,4.37626]
[1740303322499,0.03855698,2802.3,2801.8,4.37632]
[1740303322711,3.60708698,2802.3,2801.8,4.37632]
[1740303323401,0.03855698,2802.3,2801.9,3.56891]
[1740303323625,0.03855698,2802.3,2802.0,3.56885]
[1740303323819,0.03855698,2802.3,2802.0,3.5688]
[1740303324026,3.56826,2802.5,2801.9,4.17251893]
[1740303324225,0.03839535,2802.2,2801.9,3.56897]
[1740303324424,3.56826,2802.5,2801.9,3.56897]
[1740303324619,0.03839535,2802.1,2802.0,3.56886]
[1740303324820,3.56797,2802.8,2802.2,3.56854]
[1740303325032,3.56797,2802.8,2802.0,0.8072]
[1740303325033,3.56812,2802.6,2802.0,4.37599]
[1740303325533,0.03835943,2802.5,2802.0,4.37599]
[1740303326735,0.03835943,2802.5,2802.3,3.5684]
[1740303327102,3.56787,2802.8,2802.3,3.5684]
[1740303327502,0.03843127,2802.7,2802.3,3.5684]
[1740303327703,3.56812,2802.6,2802.1,3.56869]
[1740303327935,0.03843127,2802.5,2802.1,3.56869]
[1740303329416,4.36759127,2802.5,2802.0,0.8072]
[1740303329840,7.93590127,2802.5,2802.0,0.8072]
[1740303330235,3.56839,2802.4,2802.0,0.8072]
[1740303330640,3.56863,2802.2,2801.7,4.37639]
[1740303330936,3.56848,2802.4,2801.8,3.56911]
[1740303331140,0.0385121,2802.3,2801.8,3.56911]
[1740303331526,3.6070121,2802.3,2801.7,4.37639]
[1740303331703,7.1755821,2802.3,2801.7,4.37639]